{"text_format":"1","workbook":"xlsx","n_sheets":7,"sheets":["Sjekklista","Kommentert hvor","Nyttige lenker","Datavalidering","Ark2","Ark1","Ark3"],"not_rendered":{"charts":0,"images":3,"macros":1,"external_links":0,"defined_names":4,"comments":0,"pivot_tables":0},"unopened":[],"bounds":{"document_bytes":16777216,"sheet_cells":100000,"rows_first":2000,"rows_last":500,"rows_between":2000,"halvings":0,"cell_chars":16384,"cell_head_chars":4096},"cells_cut":0,"cells_raw":0,"read":"whole","date_system":"1900"}

{"sheet":"Sjekklista","index":0,"n_rows":94,"n_cols":8,"rows_kept":94,"cut":false,"hidden":false,"merged":[]}
["SJEKKLISTE VED UTARBEIDING AV REGULERINGSPLANER",null,null,null,null,null,"Sist ajour: 30.01.2019"," Nr   50-011"]
[]
["PlanId: ",2001,"Plannavn:","Farmannvegen",null,"Utfylt av:","SE","Bamble\\ Drangedal\\ Kragerø\\ Porsgrunn\\ Siljan\\ Skien  "]
[]
["Pkt.","Hoved-tema","Deltema","Spørsmål","Svaralternativer","Må kommenteres","Hjelpemidler"]
[1,1,"Overordnet plan","Følger planen opp føringene i ATP Grenland / ATP Telemark?","JA",{"$f":"IF(E6=\"Velg svar\",\"?\",IF(E6=\"UAKTUELT\",\"NEI\",IF(E6=\"NEI\",\"JA\",\"JA\")))","v":"JA"},"ATP-Grenland, ATP Telemark","Ved JA - på hvilken måte, ved NEI - hva er konflikten og begrunnelse."]
[2,1,"Overordnet plan","Er planforslaget i overenstemmelse med plankartet i kommuneplanens arealdel?","JA",{"$f":"IF(E7=\"Velg svar\",\"?\",IF(E7=\"JA\",\"NEI\",\"JA\"))","v":"NEI"},"Plankartet i kommuneplanens arealdel.","Konflikt vil kunne medføre krav om planprogram og konsekvensutredning, se pkt. 6."]
[3,1,"Overordnet plan","Er planforslaget i overenstemmelse med bestemmelser i kommuneplanens arealdel?","JA",{"$f":"IF(E8=\"Velg svar\",\"?\",IF(E8=\"JA\",\"NEI\",\"JA\"))","v":"NEI"},"Bestemmelsene til kommuneplanens arealdel.","Forhold som er i konflikt med bestemmelsene i arealdelen skal alltid begrunnes."]
[4,1,"Overordnet plan","Er planforslaget i overenstemmelse med berørt kommunedelplan?","JA",{"$f":"IF(E9=\"Velg svar\",\"?\",IF(E9=\"UAKTUELT\",\"NEI\",IF(E9=\"NEI\",\"JA\",\"NEI\")))","v":"NEI"},"Plankart/bestemmelser i berørt kommunedelplan","Uaktuelt hvis ingen kommunedelplan berøres."]
[5,1,"Overordnet plan","Er planforslaget i overenstemmelse med berørt områdeplan?","JA",{"$f":"IF(E10=\"Velg svar\",\"?\",IF(E10=\"UAKTUELT\",\"NEI\",IF(E10=\"NEI\",\"JA\",\"NEI\")))","v":"NEI"},"Plankart/bestemmelser i eventuelt berørt områdeplan","Uaktuelt hvis ingen områdeplan berøres."]
[6,1,"Overordnet plan","Utløser planforslaget krav om planprogram/konsekvensutredning?","NEI",{"$f":"IF(E11=\"Velg svar\",\"?\",IF(E11=\"JA\",\"JA\",\"JA\"))","v":"JA"},"Forskrift om konsekvensutredninger for planer"]
[7,1,"Overordnet plan","Er planforslaget sjekket ut og vurdert mot eventuelle  framtidige tiltak, for eksempel Bypakke Grenland?","UAKTUELT",{"$f":"IF(E12=\"Velg svar\",\"?\",IF(E12=\"UAKTUELT\",\"NEI\",\"JA\"))","v":"NEI"},"Bypakke Grenland","Hjelpemiddelet gjelder Porsgrunn, Siljan og Skien."]
[8,1,"Folkehelse","Er det vurdert hvordan planen kan ivareta/fremme god folkehelse?","JA",{"$f":"IF(E13=\"Velg svar\",\"?\",IF(E13=\"UAKTUELT\",\"NEI\",\"JA\"))","v":"JA"},"Folkehelse i reguleringsplaner","Her kan du eventuelt vise til andre punkter i sjekklista hvor dette er ivaretatt."]
[9,1,"Kriminalitetsforebygging","Er det vurdert om og hvordan planen kan være  kriminalitetsforebyggende?","UAKTUELT","NEI","Tryggere nærmiljøer"]
[10,1,"Landskapsvirkning","Er planforslagets nær- fjernvirkning og tilpasning til eksisterende omgivelser vurdert/dokumentert/omtalt? ","JA","JA","Estetikk i plan- og byggesaker"]
[11,1,"Estetikk","Er grad av utnytting, byggehøyder og form/volum  materialbruk og farger vurdert med hensyn til omgivelsene?","JA","JA","Fastsetting av grad av utnytting"]
[12,1,"Landskapskvaliteter","Er planområdets  solforhold, helningsgrad, topografi, eksisterende vegetasjon m.m. tatt hensyn til i planforslaget?","JA",{"$f":"IF(E17=\"Velg svar\",\"?\",IF(E17=\"UAKTUELT\",\"NEI\",IF(E17=\"NEI\",\"JA\",\"JA\")))","v":"JA"}]
[13,1,"Lokaliseringsfaktorer","Er planområdets forbindelser til skole/barnehage, service-/tjenestetilbud, friluftsområder/friområder, kollektivtilbud, arbeidsplasser med mer vurdert?","JA","JA",null,"Skal være vurdert i arbeidet med arealdelen men skal kommenteres uansett hvis det reguleres til byggeformål."]
[14,1,"Senterstruktur","Omfattes planforslaget av regionale planbestemmelser knyttet til ATP Grenland, ATP Telemark for kjøpesentre? ( lokalisering og utvidelser)","JA",{"$f":"IF(E19=\"Velg svar\",\"?\",IF(E19=\"JA\",\"JA\",\"NEI\"))","v":"JA"},"ATP-Grenland, ATP Telemark"]
[15,1,"Fortetting med kvalitet","Bidrar planforslaget til fortetting/ gjenbruk/  omforming som tilfører området nye kvaliteter","JA",{"$f":"IF(E20=\"Velg svar\",\"?\",IF(E20=\"UAKTUELT\",\"NEI\",IF(E20=\"NEI\",\"JA\",\"JA\")))","v":"JA"}]
[16,1,"Grønnstruktur","Ivaretar planforslaget sammenheng i grønnstruktur i tettbygd støk og er grønnstrukturen tilgjengelig for allmennheten?","JA",{"$f":"IF(E21=\"Velg svar\",\"?\",IF(E21=\"UAKTUELT\",\"NEI\",IF(E21=\"NEI\",\"JA\",\"JA\")))","v":"JA"},"Grønnstruktur"]
[17,1,"Utbyggingsrekkefølge","Er det sikra samtidighet evt. utbyggingsrekkefølge med hensyn til  opparbeiding av offentlige friområder, felles uteareal/lekeareal, VA-tiltak, gang-/sykkelveger eller andre trafikkløsninger? ","JA",{"$f":"IF(E22=\"Velg svar\",\"?\",IF(E22=\"UAKTUELT\",\"NEI\",IF(E22=\"NEI\",\"JA\",\"JA\")))","v":"JA"}]
[18,1,"Utbyggingsrekkefølge","Er det sikra samtidighet evt. utbyggingsrekkefølge med hensyn til skoledekning, barnehagedekning","UAKTUELT",{"$f":"IF(E23=\"Velg svar\",\"?\",IF(E23=\"UAKTUELT\",\"NEI\",IF(E23=\"NEI\",\"JA\",\"JA\")))","v":"NEI"}]
[19,1,"Utbyggingsrekkefølge","Er det sikra samtidighet for godkjent driftsplan for masseuttak?","UAKTUELT",{"$f":"IF(E24=\"Velg svar\",\"?\",IF(E24=\"UAKTUELT\",\"NEI\",IF(E24=\"NEI\",\"JA\",\"JA\")))","v":"NEI"},"Driftsplanveileder"]
[20,1,"Utbyggingsavtale","Vil planforslaget utløse behov for offentlig/privat samarbeid gjennom utbyggingsavtale?","NEI",{"$f":"IF(E25=\"Velg svar\",\"?\",IF(E25=\"JA\",\"JA\",\"NEI\"))","v":"NEI"},"Veileder utbyggingsavtaler"]
[21,1,"Økonomi konsekvenser","Vil realiseringen av planforslaget medføre behov for offentlige midler som en konsekvens av planen?","NEI",{"$f":"IF(E26=\"Velg svar\",\"?\",IF(E26=\"JA\",\"JA\",\"NEI\"))","v":"NEI"}]
[22,2,"Landbruk (jord- /skogbruk)","Ved omdisponering fra landbruk til annet formål - er det lagt opp til en effektiv arealutnyttelse?","UAKTUELT",{"$f":"IF(E27=\"Velg svar\",\"?\",IF(E27=\"UAKTUELT\",\"NEI\",IF(E27=\"NEI\",\"JA\",\"JA\")))","v":"NEI"},null," Arealendringene (jord og skog) må tallfestes."]
[23,2,"Landbruk (jord- /skogbruk)","Ved omdisponering av landbruksareal til annet formål, berører planforslaget areal som er dyrka eller er dyrkbar?","UAKTUELT",{"$f":"IF(E28=\"Velg svar\",\"?\",IF(E28=\"UAKTUELT\",\"NEI\",IF(E28=\"JA\",\"JA\",\"NEI\")))","v":"NEI"},"Kilden, NIBIO"]
[24,2,"Landbruk (jord- /skogbruk)","Ved omdisponering av landbruksareal til annet formål, er det gjort en avveining mellom hensyn til jordvern og andre samfunnsinteresser?","UAKTUELT",{"$f":"IF(E29=\"Velg svar\",\"?\",IF(E29=\"UAKTUELT\",\"NEI\",\"JA\"))","v":"NEI"}]
[25,2,"Landbruk (jord- /skogbruk)","Ved omdisponering av landbruksareal til annet formål, er det vurdert alternative løsninger og arealdisponeringsmåter?","UAKTUELT","NEI"]
[26,2,"Landbruk (jord- /skogbruk)","Vil planforslaget føre til konsekvenser som f.eks. endra drift for berørte eller tilgrensende landbrukseiendom(mer)?","UAKTUELT",{"$f":"IF(E31=\"Velg svar\",\"?\",IF(E31=\"UAKTUELT\",\"NEI\",IF(E31=\"JA\",\"JA\",\"NEI\")))","v":"NEI"}]
[27,3,"Naturverdier","Berører planforslaget naturvernområder eller foreslåtte naturvernområder? (etter naturmangfoldloven)","NEI",{"$f":"IF(E32=\"Velg svar\",\"?\",IF(E32=\"JA\",\"JA\",\"NEI\"))","v":"NEI"},"Naturbase, Miljøverndirektoratet"]
[28,3,"Naturverdier","Berører planforslaget områder som er vist som naturområder i kommuneplanens arealdel?","NEI","NEI",null,"Kommuneplanens arealdel i den enkelte kommune."]
[29,3,"Naturverdier","Berører planforslaget geologiske ressurser som sand-, grus-, pukk- eller steinressurser?","NEI","NEI","Grus og pukk, NGU","Kontakte Sven Dahlgren hos fylkeskommunen"]
[30,3,"Naturverdier","Berører planforslaget områder med verdifull informasjon om geologiske prosesser?","NEI","NEI","Geologisk arv, NGU"]
[31,3,"Naturverdier","Berører planforslaget områder som er registrert med nasjonal (A)/regional (B) eller lokal (C) verdi i naturtypekartlegging på land eller i vann?","NEI","NEI","Naturbase, Miljøverndirektoratet"]
[32,3,"Naturverdier","Berører planforslaget utvalgte naturtyper eller prioriterte arter? (Naturmangfoldloven)","NEI","NEI","Naturbase, Miljøverndirektoratet"]
[33,3,"Naturverdier","Berører planforslaget områder som er registrert som miljøfigur (MiS-figur) i skogbruksplan (ref Skog og landskap)?","NEI","NEI","NIBIO"]
[34,3,"Naturverdier","Berører planforslaget områder som er voksesteder/leveområder for kritisk truede- (CR), sterkt truede- (EN) sårbare (VU) eller  truet (NT) arter og samfunn på land og i vann?","NEI","NEI","Artskart","Kontakt kommunens miljøverkonsulent for informasjon om rovfugl."]
[35,3,"Naturmangfoldloven","Framgår det av planforslaget hvordan virkningen for naturmangfoldet er vurdert etter naturmangfoldlovens §§ 8-12?","NEI",{"$f":"IF(E40=\"Velg svar\",\"?\",IF(E40=\"UAKTUELT\",\"NEI\",\"JA\"))","v":"JA"},"Naturmangfoldloven"]
[36,3,"Strandsone","Berører planforslaget byggeforbudet i strandsonen langs sjø og vassdrag?  Byggegrense må fastsettes.","NEI","NEI","Forbud mot bygging i 100-metersbeltet"]
[37,3,"Strandsone","Berører planforslaget områder som i kommuneplanens arealdel kommer innenfor kategorien \"Bruk og vern av sjø og vassdrag, med tilhørende strandsone?","NEI","NEI",null,"Plankartet i den enkelte kommune"]
[38,3,"Friluftsinteresser"," Berører planforslaget nære friluftsområder eller friområder?","NEI","NEI",null,"Plankart i den enkelte kommune"]
[39,3,"Friluftsinteresser","Berører planforslaget områder for fri ferdsel, løyper, stier eller tilgang til markaområder?","NEI","NEI",null,"Sjekk hva som foreligger i den enkelte kommune, f.eks, barnetråkk, snarvegkart, hovedveger for sykkel osv."]
[40,3,"Friluftsinteresser","Berører planforslaget områder av nasjonal/regional/lokal verdi for friluftslivet?","NEI",{"$f":"IF(E45=\"Velg svar\",\"?\",IF(E45=\"UAKTUELT\",\"NEI\",\"JA\"))","v":"JA"},"Naturbase, Miljøverndirektoratet","Naturbase for nasjonale (statlig sikra)"]
[41,3,"Fiskeinteresser","Anses planforslaget å kunne få konsekvenser med hensyn til gytemuligheter/ leveområder/ kantsoner?","NEI","JA","Naturbase, Miljøverndirektoratet","Eventuelt lokale kartlegginger. Sjekk med miljørådgiver i kommunen."]
[42,3,"Viltinteresser","Anses planforslaget å kunne få konsekvenser for viltområder/ vilttrekk, jfr. viltkart?","NEI","NEI",null,"Sjekk med kommunal viltforvalter"]
[43,3,"Vann, avløp og renovasjon?","Er planforslaget i konflikt med kommunale planer for vann, avløp og renovasjon?","NEI","NEI",null,"Vurderes i forhold til regional plan for vannforvaltning og vannforskriftens § 12."]
[44,3,"Forurensning","Er det fare for kjemikalieutslipp eller andre forurensninger i området?","JA","JA",null,"Kontakt kommunens VA-avdeling"]
[45,3,"Forurensning","Er det foretatt en vurdering/dokumentasjon av helse- og miljømessige konsekvenser med hensyn til bunn i sjø og vassdrag (mudring)?","UAKTUELT","NEI","Grunnforurensning","Fra tidligere bruk av nærområdet."]
[46,3,"Forurensning","Er det foretatt en vurdering/dokumentasjon av helse- og sikkerhetsmessige konsekvenser med hensyn til drikkevann?","UAKTUELT","NEI"]
[47,3,"Forurensning","Er det forurenset grunn eller sjøsedimenter innenfor eller nær planområdet?","NEI",{"$f":"IF(E52=\"Velg svar\",\"?\",IF(E52=\"UAKTUELT\",\"NEI\",IF(E52=\"JA\",\"JA\",\"NEI\")))","v":"NEI"}]
[48,3,"Forurensning","Vil planforslaget kunne få helse- og sikkerhetsmessige konsekvenser med hensyn til forurensa grunn fra eksisterende eller planlagte tiltak?","NEI","NEI","Grunnforurensning - Miljøverndirektoratet"]
[49,3,"Forurensning","Vil planforslaget kunne få helse- og sikkerhetsmessige konsekvenser med hensyn til luftforurensning eller støy fra eksisterende eller planlagte kilder/tiltak?","NEI","NEI"]
[50,3,"Enøk","Er krav om energifleksible varmesystemer vurdert eller integrert?","UAKTUELT",{"$f":"IF(E55=\"Velg svar\",\"?\",IF(E55=\"UAKTUELT\",\"NEI\",IF(E55=\"NEI\",\"JA\",\"JA\")))","v":"NEI"}]
[51,3,"Enøk","Ligger planområdet innenfor konsesjonsområde for fjernvarme?","NEI","NEI"]
[52,4,"Vannforvaltning","Fører planforslaget til at vannforekomster forringes?","NEI","NEI",null,"Sjekkes med den enkelte kommune"]
[53,4,"Kulturlandskap","Berører planforslaget freda kulturlandskap eller kulturminner/ kulturmiljø som er verna/freda, midlertidig verna/freda eller foreslått verna eller freda?","NEI","NEI","Naturbase, Miljøverndirektoratet","Sjekk også arealdelen og om det er registreringer i den enkelte kommune."]
[54,4,"Kulturlandskap","Er det sikret en tilstrekkelig avstand/buffer mellom utbyggingsområde og landbruksområde?","UAKTUELT",{"$f":"IF(E59=\"Velg svar\",\"?\",IF(E59=\"UAKTUELT\",\"NEI\",IF(E59=\"NEI\",\"JA\",\"JA\")))","v":"NEI"},"Sjekk arealplanen/ landbruksplanen for å vurdere hva som er tistrekkelig."]
[55,4,"Kulturlandskap","Berører planforslaget helhetlig kulturlandskap?","NEI",{"$f":"IF(E60=\"Velg svar\",\"?\",IF(E60=\"JA\",\"JA\",\"NEI\"))","v":"NEI"},"Naturbase, Miljøverndirektoratet"]
[56,4,"Kulturmiljø","Berører planforslaget kulturmiljø som bør tas spesielt hensyn til, f.eks. kystkulturmiljø, bymiljø, industrimiljø?","NEI","NEI",null,"Må vurderes i det enkelte tilfelle"]
[57,5,"Naturfarer","Er planområdet utsatt for fare med hensyn til flom eller andre værfenomen?","NEI","NEI","NVE Atlas"]
[58,5,"Naturfarer","Vil overvannet håndteres lokalt?","JA",{"$f":"IF(E63=\"Velg svar\",\"?\",IF(E63=\"UAKTUELT\",\"NEI\",IF(E63=\"NEI\",\"JA\",\"JA\")))","v":"JA"},"Brosjyre om blågrønn faktor"]
[59,5,"Naturfarer","Er planområdet utsatt for fare med hensyn til snøskred, steinskred, jordskred eller kvikkleire?","NEI","NEI","NVE Atlas"]
[60,5,"Naturfarer","Er det i planområdet fare med hensyn til skog- og grassbranner?","NEI","NEI","YR"]
[61,5,"Naturfarer","Er planområdet utsatt for fare med hensyn til radon eller annen bakgrunnsstråling?","NEI",{"$f":"IF(E66=\"Velg svar\",\"?\",IF(E66=\"JA\",\"JA\",\"NEI\"))","v":"NEI"},"Radon, NGU"]
[62,5,"Naturfarer","Vil planforslaget komme i berøring med fremmede, skadelige arter?","NEI",{"$f":"IF(E67=\"Velg svar\",\"?\",IF(E67=\"JA\",\"JA\",\"NEI\"))","v":"NEI"},"Naturbase, Miljøverndirektoratet"]
[63,5,"Menneske- og virksomhetsbaserte farer","Er det i planområdet fare med hensyn til industri - brann/eksplosjon?","JA",{"$f":"IF(E68=\"Velg svar\",\"?\",IF(E68=\"JA\",\"JA\",\"NEI\"))","v":"JA"},null,"DSB: temahefter og \"FAST\" (oversikt over farlige stoffer). Sjekk med den enkelte kommunes ROS-analyse eller arealdel."]
[64,5,"Menneske- og virksomhetsbaserte farer","Er det i planområdet fare med hensyn til stråling fra kraftledninger?","NEI","NEI","Elektromagnetisk stråling","Kraftlinjen må sjekkes i forhold til hva man har konsesjon for (makskapasitet). Statens strålevern."]
[65,5,"Menneske- og virksomhetsbaserte farer","Er det i nærheten av planområdet fare med hensyn til transport eller ulykker med transportmidler (skip, farled, fartøy til kai, jernbane, fly)?","NEI","NEI","Risikoanalyse innseiling Grenland Havn"]
[66,5,"Menneske- og virksomhetsbaserte farer","Er det i planområdet infrastruktur man må ta spesielt hensyn til (f.eks. ledninger på land eller i sjø)?","NEI","NEI"]
[67,6,"Tilgjengelighet","Er planområdet vurdert med hensyn til løsninger som gir tilgjengelighet for alle (universell utforming)?","JA",{"$f":"IF(E72=\"Velg svar\",\"?\",IF(E72=\"UAKTUELT\",\"NEI\",\"JA\"))","v":"JA"},"Universell utforming i reguleringsplaner, brev fra MD.","Planleggingen skal tilstrebe at hele eller deler av området vil ha universell utforming."]
[68,6,"Leke- og oppholdsareal","Er arealenes egnethet for lek og møteplass/oppholdsareal vurdert med hensyn til helse- og sikkerhetsmessige forhold?","JA","JA","RPR for å styrke barn og unges interesser i planleggingen"]
[69,6,"Leke- og oppholdsareal","Er arealenes egnethet for lek og møteplass vurdert med hensyn til lokalisering (solfylt, vindskjermet, god vegetasjon, trafikksikkerhet, avstander til nye og eksisterende boliger)?","JA","JA","Pkt. 5a, b og c i RPR for å styrke barn og unges interesser i planleggingen"]
[70,6,"Leke- og oppholdsareal","Er arealenes egnethet for lek og møteplass vurdert med hensyn til størrelse, utforming og kvalitet, at de skal kunne fungere til ulike årstider og er tilpasset ulike brukergruppers behov?","JA","JA","Pkt. 5a, b og c i RPR for å styrke barn og unges interesser i planleggingen"]
[71,6,"Forhold til tilgrensende boligområder","Er det vurdert behovet for ulike typer lekeplasser og møteplasser med hensyn til planområdets tilgrensende boligområder?","UAKTUELT","NEI","Pkt. 5a, b og c i RPR for å styrke barn og unges interesser i planleggingen"]
[72,6,"Tap/erstatning av lekeareal","Fører planforslaget til et tap av eksisterende eller egnede lekeareal eller møteplasser for beboerne eller barnehager/skoler i området som utløser krav om erstatningsareal?","NEI","NEI","Pkt. 5d i RPR for å styrke barn og unges interesser i planleggingen"]
[73,6,"Landskapsplan","Er det utarbeidet en landskapsplan som viser eksisterende vegetasjon, nyplanting, veier, parkering, gangvei, stigningsforhold og leke- og oppholdsareal?","UAKTUELT",{"$f":"IF(E78=\"Velg svar\",\"?\",IF(E78=\"UAKTUELT\",\"NEI\",IF(E78=\"NEI\",\"JA\",\"JA\")))","v":"NEI"}]
[74,7,"Trafikkforhold","Er det kartlagt og vurdert trafikkforhold (adkomst, trafikkmengde/ÅDT, trafikkavvikling for ulike trafikantgrupper)?","JA",{"$f":"IF(E79=\"Velg svar\",\"?\",IF(E79=\"UAKTUELT\",\"NEI\",IF(E79=\"JA\",\"JA\",\"NEI\")))","v":"JA"}]
[75,7,"Trafikkforhold","Er parkeringen for sykkel og bil løst i henhold til gjeldende krav?","JA",{"$f":"IF(E80=\"Velg svar\",\"?\",IF(E80=\"UAKTUELT\",\"NEI\",IF(E80=\"NEI\",\"JA\",\"NEI\")))","v":"NEI"},"Sjekk arealdelen i den enkelte kommune"]
[76,7,"Trafikkforhold","Fører planforslaget til økt trafikk?","JA","JA"]
[77,7,"Trafikkplan/ vegutforming","Tilfredsstiller planforslaget veglov / vegnormal, evt. standard for kommunale veger,?","JA",{"$f":"IF(E82=\"Velg svar\",\"?\",IF(E82=\"UAKTUELT\",\"NEI\",IF(E82=\"NEI\",\"JA\",\"NEI\")))","v":"NEI"},"Veg og gateutforming"]
[78,7,"Kollektivtrafikk","Er det sikret god tilknytning til kollektivknutepunkt/holdeplass? (buss, bane, ferge o.l.)?","JA",{"$f":"IF(E83=\"Velg svar\",\"?\",IF(E83=\"UAKTUELT\",\"NEI\",IF(E83=\"NEI\",\"JA\",\"JA\")))","v":"JA"}]
[79,7,"Kollektivtrafikk","Er det vurdert behov for kollektivfelt, busslommer, bussrepos, leskur, drosjeholdeplass?","UAKTUELT",{"$f":"IF(E84=\"Velg svar\",\"?\",IF(E84=\"UAKTUELT\",\"NEI\",\"JA\"))","v":"NEI"}]
[80,7,"Trafikksikkerhet","Er samtidighet vurdert med hensyn til trafikksikkerhet og tilgjengelighet til bussholdeplasser/kollektivtilbud?","JA","JA"]
[81,7,"Trafikksikkerhet","Er samtidighet vurdert med hensyn til trafikksikkerhet og tilgjengelighet til nærbutikk, boligområder, forbindelseslinjer og kryssing for myke traffikanter?","JA","JA"]
[82,7,"Trafikksikkerhet","Knytter planforslaget seg til et sammenhengende gang- og sykkelvegnett?","JA",{"$f":"IF(E87=\"Velg svar\",\"?\",IF(E87=\"UAKTUELT\",\"NEI\",IF(E87=\"NEI\",\"JA\",\"JA\")))","v":"JA"}]
[83,7,"Trafikksikkerhet","Er samtidighet vurdert med hensyn til trafikksikkerhet og tilgjengelighet til skole /barnehage, skoleveg/barnetråkk, lekeareal/oppholdsareal, fri- og friluftsområder?","JA",{"$f":"IF(E88=\"Velg svar\",\"?\",IF(E88=\"UAKTUELT\",\"NEI\",\"JA\"))","v":"JA"}]
[84,8,"Andre kommentarer",null,null,{"$f":"IF(D89=\"\",\"\",\"Ja/Nei?\")","v":""}]
[85,8,"Andre kommentarer",null,null,{"$f":"IF(D90=\"\",\"\",\"Ja/Nei?\")","v":""}]
[86,8,"Andre kommentarer",null,null,""]
[87,8,"Andre kommentarer",null,null,""]
[88,8,"Andre kommentarer",null,null,""]
[89,8,"Andre kommentarer",null,null,""]

{"sheet":"Kommentert hvor","index":1,"n_rows":98,"n_cols":5,"rows_kept":98,"cut":false,"hidden":false,"merged":[]}
["På dette arket skal du fortelle i hvilket vedlegg og hvilken side spørsmålet er kommentert/utredet:"]
[]
[{"$f":"IF(Sjekklista!D3=\"\",\"\",\"Plan :\")","v":"Plan :"},{"$f":"IF(Sjekklista!D3=\"\",\"\",Sjekklista!D3)","v":"Farmannvegen"},{"$f":"IF(Sjekklista!G3=\"\",\"\",\"Utfylt av :\")","v":"Utfylt av :"},{"$f":"IF(Sjekklista!G3=\"\",\"\",Sjekklista!G3)","v":"SE"}]
[]
[]
[]
[]
["Pkt.","Spørsmål","Kommentert","Vedlegg nr"," Overskrift evt. Side"]
[{"$f":"Sjekklista!A6","v":1},{"$f":"IF(Sjekklista!E6=\"Velg svar\",\"Spørsmålet kommer ikke fram før svaralternativ er valgt i sjekklista.\",Sjekklista!D6)","v":"Følger planen opp føringene i ATP Grenland / ATP Telemark?"},{"$f":"IF(Sjekklista!F6=\"JA\",\"JA\",IF(Sjekklista!F6=\"?\",\"?\",IF(Sjekklista!F6=\"\",\"\",\"Unødvendig\")))","v":"JA"},null,"Trafikk er beskrevet i trafikkanalyse"]
[{"$f":"Sjekklista!A7","v":2},{"$f":"IF(Sjekklista!E7=\"Velg svar\",\"Spørsmålet kommer ikke fram før svaralternativ er valgt i sjekklista.\",Sjekklista!D7)","v":"Er planforslaget i overenstemmelse med plankartet i kommuneplanens arealdel?"},{"$f":"IF(Sjekklista!F7=\"JA\",\"JA\",IF(Sjekklista!F7=\"?\",\"?\",IF(Sjekklista!F7=\"\",\"\",\"Unødvendig\")))","v":"Unødvendig"}]
[{"$f":"Sjekklista!A8","v":3},{"$f":"IF(Sjekklista!E8=\"Velg svar\",\"Spørsmålet kommer ikke fram før svaralternativ er valgt i sjekklista.\",Sjekklista!D8)","v":"Er planforslaget i overenstemmelse med bestemmelser i kommuneplanens arealdel?"},{"$f":"IF(Sjekklista!F8=\"JA\",\"JA\",IF(Sjekklista!F8=\"?\",\"?\",IF(Sjekklista!F8=\"\",\"\",\"Unødvendig\")))","v":"Unødvendig"}]
[{"$f":"Sjekklista!A9","v":4},{"$f":"IF(Sjekklista!E9=\"Velg svar\",\"Spørsmålet kommer ikke fram før svaralternativ er valgt i sjekklista.\",Sjekklista!D9)","v":"Er planforslaget i overenstemmelse med berørt kommunedelplan?"},{"$f":"IF(Sjekklista!F9=\"JA\",\"JA\",IF(Sjekklista!F9=\"?\",\"?\",IF(Sjekklista!F9=\"\",\"\",\"Unødvendig\")))","v":"Unødvendig"}]
[{"$f":"Sjekklista!A10","v":5},{"$f":"IF(Sjekklista!E10=\"Velg svar\",\"Spørsmålet kommer ikke fram før svaralternativ er valgt i sjekklista.\",Sjekklista!D10)","v":"Er planforslaget i overenstemmelse med berørt områdeplan?"},{"$f":"IF(Sjekklista!F10=\"JA\",\"JA\",IF(Sjekklista!F10=\"?\",\"?\",IF(Sjekklista!F10=\"\",\"\",\"Unødvendig\")))","v":"Unødvendig"}]
[{"$f":"Sjekklista!A11","v":6},{"$f":"IF(Sjekklista!E11=\"Velg svar\",\"Spørsmålet kommer ikke fram før svaralternativ er valgt i sjekklista.\",Sjekklista!D11)","v":"Utløser planforslaget krav om planprogram/konsekvensutredning?"},{"$f":"IF(Sjekklista!F11=\"JA\",\"JA\",IF(Sjekklista!F11=\"?\",\"?\",IF(Sjekklista!F11=\"\",\"\",\"Unødvendig\")))","v":"JA"}]
[{"$f":"Sjekklista!A12","v":7},{"$f":"IF(Sjekklista!E12=\"Velg svar\",\"Spørsmålet kommer ikke fram før svaralternativ er valgt i sjekklista.\",Sjekklista!D12)","v":"Er planforslaget sjekket ut og vurdert mot eventuelle  framtidige tiltak, for eksempel Bypakke Grenland?"},{"$f":"IF(Sjekklista!F12=\"JA\",\"JA\",IF(Sjekklista!F12=\"?\",\"?\",IF(Sjekklista!F12=\"\",\"\",\"Unødvendig\")))","v":"Unødvendig"}]
[{"$f":"Sjekklista!A13","v":8},{"$f":"IF(Sjekklista!E13=\"Velg svar\",\"Spørsmålet kommer ikke fram før svaralternativ er valgt i sjekklista.\",Sjekklista!D13)","v":"Er det vurdert hvordan planen kan ivareta/fremme god folkehelse?"},{"$f":"IF(Sjekklista!F13=\"JA\",\"JA\",IF(Sjekklista!F13=\"?\",\"?\",IF(Sjekklista!F13=\"\",\"\",\"Unødvendig\")))","v":"JA"},null,"Utearealer er oprettholdt etter krav"]
[{"$f":"Sjekklista!A14","v":9},{"$f":"IF(Sjekklista!E14=\"Velg svar\",\"Spørsmålet kommer ikke fram før svaralternativ er valgt i sjekklista.\",Sjekklista!D14)","v":"Er det vurdert om og hvordan planen kan være  kriminalitetsforebyggende?"},{"$f":"IF(Sjekklista!F14=\"JA\",\"JA\",IF(Sjekklista!F14=\"?\",\"?\",IF(Sjekklista!F14=\"\",\"\",\"Unødvendig\")))","v":"Unødvendig"}]
[{"$f":"Sjekklista!A15","v":10},{"$f":"IF(Sjekklista!E15=\"Velg svar\",\"Spørsmålet kommer ikke fram før svaralternativ er valgt i sjekklista.\",Sjekklista!D15)","v":"Er planforslagets nær- fjernvirkning og tilpasning til eksisterende omgivelser vurdert/dokumentert/omtalt? "},{"$f":"IF(Sjekklista!F15=\"JA\",\"JA\",IF(Sjekklista!F15=\"?\",\"?\",IF(Sjekklista!F15=\"\",\"\",\"Unødvendig\")))","v":"JA"}]
[{"$f":"Sjekklista!A16","v":11},{"$f":"IF(Sjekklista!E16=\"Velg svar\",\"Spørsmålet kommer ikke fram før svaralternativ er valgt i sjekklista.\",Sjekklista!D16)","v":"Er grad av utnytting, byggehøyder og form/volum  materialbruk og farger vurdert med hensyn til omgivelsene?"},{"$f":"IF(Sjekklista!F16=\"JA\",\"JA\",IF(Sjekklista!F16=\"?\",\"?\",IF(Sjekklista!F16=\"\",\"\",\"Unødvendig\")))","v":"JA"}]
[{"$f":"Sjekklista!A17","v":12},{"$f":"IF(Sjekklista!E17=\"Velg svar\",\"Spørsmålet kommer ikke fram før svaralternativ er valgt i sjekklista.\",Sjekklista!D17)","v":"Er planområdets  solforhold, helningsgrad, topografi, eksisterende vegetasjon m.m. tatt hensyn til i planforslaget?"},{"$f":"IF(Sjekklista!F17=\"JA\",\"JA\",IF(Sjekklista!F17=\"?\",\"?\",IF(Sjekklista!F17=\"\",\"\",\"Unødvendig\")))","v":"JA"}]
[{"$f":"Sjekklista!A18","v":13},{"$f":"IF(Sjekklista!E18=\"Velg svar\",\"Spørsmålet kommer ikke fram før svaralternativ er valgt i sjekklista.\",Sjekklista!D18)","v":"Er planområdets forbindelser til skole/barnehage, service-/tjenestetilbud, friluftsområder/friområder, kollektivtilbud, arbeidsplasser med mer vurdert?"},{"$f":"IF(Sjekklista!F18=\"JA\",\"JA\",IF(Sjekklista!F18=\"?\",\"?\",IF(Sjekklista!F18=\"\",\"\",\"Unødvendig\")))","v":"JA"},null,"Ja, planbeskrivelsen"]
[{"$f":"Sjekklista!A19","v":14},{"$f":"IF(Sjekklista!E19=\"Velg svar\",\"Spørsmålet kommer ikke fram før svaralternativ er valgt i sjekklista.\",Sjekklista!D19)","v":"Omfattes planforslaget av regionale planbestemmelser knyttet til ATP Grenland, ATP Telemark for kjøpesentre? ( lokalisering og utvidelser)"},{"$f":"IF(Sjekklista!F19=\"JA\",\"JA\",IF(Sjekklista!F19=\"?\",\"?\",IF(Sjekklista!F19=\"\",\"\",\"Unødvendig\")))","v":"JA"},null,"Ja, planbeskrivelsen"]
[{"$f":"Sjekklista!A20","v":15},{"$f":"IF(Sjekklista!E20=\"Velg svar\",\"Spørsmålet kommer ikke fram før svaralternativ er valgt i sjekklista.\",Sjekklista!D20)","v":"Bidrar planforslaget til fortetting/ gjenbruk/  omforming som tilfører området nye kvaliteter"},{"$f":"IF(Sjekklista!F20=\"JA\",\"JA\",IF(Sjekklista!F20=\"?\",\"?\",IF(Sjekklista!F20=\"\",\"\",\"Unødvendig\")))","v":"JA"},null,"Ja, fortetting inennfor bybåndet"]
[{"$f":"Sjekklista!A21","v":16},{"$f":"IF(Sjekklista!E21=\"Velg svar\",\"Spørsmålet kommer ikke fram før svaralternativ er valgt i sjekklista.\",Sjekklista!D21)","v":"Ivaretar planforslaget sammenheng i grønnstruktur i tettbygd støk og er grønnstrukturen tilgjengelig for allmennheten?"},{"$f":"IF(Sjekklista!F21=\"JA\",\"JA\",IF(Sjekklista!F21=\"?\",\"?\",IF(Sjekklista!F21=\"\",\"\",\"Unødvendig\")))","v":"JA"},null,"Ja, boliger med plen og lekeplass"]
[{"$f":"Sjekklista!A22","v":17},{"$f":"IF(Sjekklista!E22=\"Velg svar\",\"Spørsmålet kommer ikke fram før svaralternativ er valgt i sjekklista.\",Sjekklista!D22)","v":"Er det sikra samtidighet evt. utbyggingsrekkefølge med hensyn til  opparbeiding av offentlige friområder, felles uteareal/lekeareal, VA-tiltak, gang-/sykkelveger eller andre trafikkløsninger? "},{"$f":"IF(Sjekklista!F22=\"JA\",\"JA\",IF(Sjekklista!F22=\"?\",\"?\",IF(Sjekklista!F22=\"\",\"\",\"Unødvendig\")))","v":"JA"}]
[{"$f":"Sjekklista!A23","v":18},{"$f":"IF(Sjekklista!E23=\"Velg svar\",\"Spørsmålet kommer ikke fram før svaralternativ er valgt i sjekklista.\",Sjekklista!D23)","v":"Er det sikra samtidighet evt. utbyggingsrekkefølge med hensyn til skoledekning, barnehagedekning"},{"$f":"IF(Sjekklista!F23=\"JA\",\"JA\",IF(Sjekklista!F23=\"?\",\"?\",IF(Sjekklista!F23=\"\",\"\",\"Unødvendig\")))","v":"Unødvendig"}]
[{"$f":"Sjekklista!A24","v":19},{"$f":"IF(Sjekklista!E24=\"Velg svar\",\"Spørsmålet kommer ikke fram før svaralternativ er valgt i sjekklista.\",Sjekklista!D24)","v":"Er det sikra samtidighet for godkjent driftsplan for masseuttak?"},{"$f":"IF(Sjekklista!F24=\"JA\",\"JA\",IF(Sjekklista!F24=\"?\",\"?\",IF(Sjekklista!F24=\"\",\"\",\"Unødvendig\")))","v":"Unødvendig"}]
[{"$f":"Sjekklista!A25","v":20},{"$f":"IF(Sjekklista!E25=\"Velg svar\",\"Spørsmålet kommer ikke fram før svaralternativ er valgt i sjekklista.\",Sjekklista!D25)","v":"Vil planforslaget utløse behov for offentlig/privat samarbeid gjennom utbyggingsavtale?"},{"$f":"IF(Sjekklista!F25=\"JA\",\"JA\",IF(Sjekklista!F25=\"?\",\"?\",IF(Sjekklista!F25=\"\",\"\",\"Unødvendig\")))","v":"Unødvendig"}]
[{"$f":"Sjekklista!A26","v":21},{"$f":"IF(Sjekklista!E26=\"Velg svar\",\"Spørsmålet kommer ikke fram før svaralternativ er valgt i sjekklista.\",Sjekklista!D26)","v":"Vil realiseringen av planforslaget medføre behov for offentlige midler som en konsekvens av planen?"},{"$f":"IF(Sjekklista!F26=\"JA\",\"JA\",IF(Sjekklista!F26=\"?\",\"?\",IF(Sjekklista!F26=\"\",\"\",\"Unødvendig\")))","v":"Unødvendig"}]
[{"$f":"Sjekklista!A27","v":22},{"$f":"IF(Sjekklista!E27=\"Velg svar\",\"Spørsmålet kommer ikke fram før svaralternativ er valgt i sjekklista.\",Sjekklista!D27)","v":"Ved omdisponering fra landbruk til annet formål - er det lagt opp til en effektiv arealutnyttelse?"},{"$f":"IF(Sjekklista!F27=\"JA\",\"JA\",IF(Sjekklista!F27=\"?\",\"?\",IF(Sjekklista!F27=\"\",\"\",\"Unødvendig\")))","v":"Unødvendig"}]
[{"$f":"Sjekklista!A28","v":23},{"$f":"IF(Sjekklista!E28=\"Velg svar\",\"Spørsmålet kommer ikke fram før svaralternativ er valgt i sjekklista.\",Sjekklista!D28)","v":"Ved omdisponering av landbruksareal til annet formål, berører planforslaget areal som er dyrka eller er dyrkbar?"},{"$f":"IF(Sjekklista!F28=\"JA\",\"JA\",IF(Sjekklista!F28=\"?\",\"?\",IF(Sjekklista!F28=\"\",\"\",\"Unødvendig\")))","v":"Unødvendig"}]
[{"$f":"Sjekklista!A29","v":24},{"$f":"IF(Sjekklista!E29=\"Velg svar\",\"Spørsmålet kommer ikke fram før svaralternativ er valgt i sjekklista.\",Sjekklista!D29)","v":"Ved omdisponering av landbruksareal til annet formål, er det gjort en avveining mellom hensyn til jordvern og andre samfunnsinteresser?"},{"$f":"IF(Sjekklista!F29=\"JA\",\"JA\",IF(Sjekklista!F29=\"?\",\"?\",IF(Sjekklista!F29=\"\",\"\",\"Unødvendig\")))","v":"Unødvendig"}]
[{"$f":"Sjekklista!A30","v":25},{"$f":"IF(Sjekklista!E30=\"Velg svar\",\"Spørsmålet kommer ikke fram før svaralternativ er valgt i sjekklista.\",Sjekklista!D30)","v":"Ved omdisponering av landbruksareal til annet formål, er det vurdert alternative løsninger og arealdisponeringsmåter?"},{"$f":"IF(Sjekklista!F30=\"JA\",\"JA\",IF(Sjekklista!F30=\"?\",\"?\",IF(Sjekklista!F30=\"\",\"\",\"Unødvendig\")))","v":"Unødvendig"}]
[{"$f":"Sjekklista!A31","v":26},{"$f":"IF(Sjekklista!E31=\"Velg svar\",\"Spørsmålet kommer ikke fram før svaralternativ er valgt i sjekklista.\",Sjekklista!D31)","v":"Vil planforslaget føre til konsekvenser som f.eks. endra drift for berørte eller tilgrensende landbrukseiendom(mer)?"},{"$f":"IF(Sjekklista!F31=\"JA\",\"JA\",IF(Sjekklista!F31=\"?\",\"?\",IF(Sjekklista!F31=\"\",\"\",\"Unødvendig\")))","v":"Unødvendig"}]
[{"$f":"Sjekklista!A32","v":27},{"$f":"IF(Sjekklista!E32=\"Velg svar\",\"Spørsmålet kommer ikke fram før svaralternativ er valgt i sjekklista.\",Sjekklista!D32)","v":"Berører planforslaget naturvernområder eller foreslåtte naturvernområder? (etter naturmangfoldloven)"},{"$f":"IF(Sjekklista!F32=\"JA\",\"JA\",IF(Sjekklista!F32=\"?\",\"?\",IF(Sjekklista!F32=\"\",\"\",\"Unødvendig\")))","v":"Unødvendig"}]
[{"$f":"Sjekklista!A33","v":28},{"$f":"IF(Sjekklista!E33=\"Velg svar\",\"Spørsmålet kommer ikke fram før svaralternativ er valgt i sjekklista.\",Sjekklista!D33)","v":"Berører planforslaget områder som er vist som naturområder i kommuneplanens arealdel?"},{"$f":"IF(Sjekklista!F33=\"JA\",\"JA\",IF(Sjekklista!F33=\"?\",\"?\",IF(Sjekklista!F33=\"\",\"\",\"Unødvendig\")))","v":"Unødvendig"}]
[{"$f":"Sjekklista!A34","v":29},{"$f":"IF(Sjekklista!E34=\"Velg svar\",\"Spørsmålet kommer ikke fram før svaralternativ er valgt i sjekklista.\",Sjekklista!D34)","v":"Berører planforslaget geologiske ressurser som sand-, grus-, pukk- eller steinressurser?"},{"$f":"IF(Sjekklista!F34=\"JA\",\"JA\",IF(Sjekklista!F34=\"?\",\"?\",IF(Sjekklista!F34=\"\",\"\",\"Unødvendig\")))","v":"Unødvendig"}]
[{"$f":"Sjekklista!A35","v":30},{"$f":"IF(Sjekklista!E35=\"Velg svar\",\"Spørsmålet kommer ikke fram før svaralternativ er valgt i sjekklista.\",Sjekklista!D35)","v":"Berører planforslaget områder med verdifull informasjon om geologiske prosesser?"},{"$f":"IF(Sjekklista!F35=\"JA\",\"JA\",IF(Sjekklista!F35=\"?\",\"?\",IF(Sjekklista!F35=\"\",\"\",\"Unødvendig\")))","v":"Unødvendig"}]
[{"$f":"Sjekklista!A36","v":31},{"$f":"IF(Sjekklista!E36=\"Velg svar\",\"Spørsmålet kommer ikke fram før svaralternativ er valgt i sjekklista.\",Sjekklista!D36)","v":"Berører planforslaget områder som er registrert med nasjonal (A)/regional (B) eller lokal (C) verdi i naturtypekartlegging på land eller i vann?"},{"$f":"IF(Sjekklista!F36=\"JA\",\"JA\",IF(Sjekklista!F36=\"?\",\"?\",IF(Sjekklista!F36=\"\",\"\",\"Unødvendig\")))","v":"Unødvendig"}]
[{"$f":"Sjekklista!A37","v":32},{"$f":"IF(Sjekklista!E37=\"Velg svar\",\"Spørsmålet kommer ikke fram før svaralternativ er valgt i sjekklista.\",Sjekklista!D37)","v":"Berører planforslaget utvalgte naturtyper eller prioriterte arter? (Naturmangfoldloven)"},{"$f":"IF(Sjekklista!F37=\"JA\",\"JA\",IF(Sjekklista!F37=\"?\",\"?\",IF(Sjekklista!F37=\"\",\"\",\"Unødvendig\")))","v":"Unødvendig"}]
[{"$f":"Sjekklista!A38","v":33},{"$f":"IF(Sjekklista!E38=\"Velg svar\",\"Spørsmålet kommer ikke fram før svaralternativ er valgt i sjekklista.\",Sjekklista!D38)","v":"Berører planforslaget områder som er registrert som miljøfigur (MiS-figur) i skogbruksplan (ref Skog og landskap)?"},{"$f":"IF(Sjekklista!F38=\"JA\",\"JA\",IF(Sjekklista!F38=\"?\",\"?\",IF(Sjekklista!F38=\"\",\"\",\"Unødvendig\")))","v":"Unødvendig"}]
[{"$f":"Sjekklista!A39","v":34},{"$f":"IF(Sjekklista!E39=\"Velg svar\",\"Spørsmålet kommer ikke fram før svaralternativ er valgt i sjekklista.\",Sjekklista!D39)","v":"Berører planforslaget områder som er voksesteder/leveområder for kritisk truede- (CR), sterkt truede- (EN) sårbare (VU) eller  truet (NT) arter og samfunn på land og i vann?"},{"$f":"IF(Sjekklista!F39=\"JA\",\"JA\",IF(Sjekklista!F39=\"?\",\"?\",IF(Sjekklista!F39=\"\",\"\",\"Unødvendig\")))","v":"Unødvendig"}]
[{"$f":"Sjekklista!A40","v":35},{"$f":"IF(Sjekklista!E40=\"Velg svar\",\"Spørsmålet kommer ikke fram før svaralternativ er valgt i sjekklista.\",Sjekklista!D40)","v":"Framgår det av planforslaget hvordan virkningen for naturmangfoldet er vurdert etter naturmangfoldlovens §§ 8-12?"},{"$f":"IF(Sjekklista!F40=\"JA\",\"JA\",IF(Sjekklista!F40=\"?\",\"?\",IF(Sjekklista!F40=\"\",\"\",\"Unødvendig\")))","v":"JA"}]
[{"$f":"Sjekklista!A41","v":36},{"$f":"IF(Sjekklista!E41=\"Velg svar\",\"Spørsmålet kommer ikke fram før svaralternativ er valgt i sjekklista.\",Sjekklista!D41)","v":"Berører planforslaget byggeforbudet i strandsonen langs sjø og vassdrag?  Byggegrense må fastsettes."},{"$f":"IF(Sjekklista!F41=\"JA\",\"JA\",IF(Sjekklista!F41=\"?\",\"?\",IF(Sjekklista!F41=\"\",\"\",\"Unødvendig\")))","v":"Unødvendig"}]
[{"$f":"Sjekklista!A42","v":37},{"$f":"IF(Sjekklista!E42=\"Velg svar\",\"Spørsmålet kommer ikke fram før svaralternativ er valgt i sjekklista.\",Sjekklista!D42)","v":"Berører planforslaget områder som i kommuneplanens arealdel kommer innenfor kategorien \"Bruk og vern av sjø og vassdrag, med tilhørende strandsone?"},{"$f":"IF(Sjekklista!F42=\"JA\",\"JA\",IF(Sjekklista!F42=\"?\",\"?\",IF(Sjekklista!F42=\"\",\"\",\"Unødvendig\")))","v":"Unødvendig"}]
[{"$f":"Sjekklista!A43","v":38},{"$f":"IF(Sjekklista!E43=\"Velg svar\",\"Spørsmålet kommer ikke fram før svaralternativ er valgt i sjekklista.\",Sjekklista!D43)","v":" Berører planforslaget nære friluftsområder eller friområder?"},{"$f":"IF(Sjekklista!F43=\"JA\",\"JA\",IF(Sjekklista!F43=\"?\",\"?\",IF(Sjekklista!F43=\"\",\"\",\"Unødvendig\")))","v":"Unødvendig"}]
[{"$f":"Sjekklista!A44","v":39},{"$f":"IF(Sjekklista!E44=\"Velg svar\",\"Spørsmålet kommer ikke fram før svaralternativ er valgt i sjekklista.\",Sjekklista!D44)","v":"Berører planforslaget områder for fri ferdsel, løyper, stier eller tilgang til markaområder?"},{"$f":"IF(Sjekklista!F44=\"JA\",\"JA\",IF(Sjekklista!F44=\"?\",\"?\",IF(Sjekklista!F44=\"\",\"\",\"Unødvendig\")))","v":"Unødvendig"}]
[{"$f":"Sjekklista!A45","v":40},{"$f":"IF(Sjekklista!E45=\"Velg svar\",\"Spørsmålet kommer ikke fram før svaralternativ er valgt i sjekklista.\",Sjekklista!D45)","v":"Berører planforslaget områder av nasjonal/regional/lokal verdi for friluftslivet?"},{"$f":"IF(Sjekklista!F45=\"JA\",\"JA\",IF(Sjekklista!F45=\"?\",\"?\",IF(Sjekklista!F45=\"\",\"\",\"Unødvendig\")))","v":"JA"},null,"Nei"]
[{"$f":"Sjekklista!A46","v":41},{"$f":"IF(Sjekklista!E46=\"Velg svar\",\"Spørsmålet kommer ikke fram før svaralternativ er valgt i sjekklista.\",Sjekklista!D46)","v":"Anses planforslaget å kunne få konsekvenser med hensyn til gytemuligheter/ leveområder/ kantsoner?"},{"$f":"IF(Sjekklista!F46=\"JA\",\"JA\",IF(Sjekklista!F46=\"?\",\"?\",IF(Sjekklista!F46=\"\",\"\",\"Unødvendig\")))","v":"JA"},null,"Nei"]
[{"$f":"Sjekklista!A47","v":42},{"$f":"IF(Sjekklista!E47=\"Velg svar\",\"Spørsmålet kommer ikke fram før svaralternativ er valgt i sjekklista.\",Sjekklista!D47)","v":"Anses planforslaget å kunne få konsekvenser for viltområder/ vilttrekk, jfr. viltkart?"},{"$f":"IF(Sjekklista!F47=\"JA\",\"JA\",IF(Sjekklista!F47=\"?\",\"?\",IF(Sjekklista!F47=\"\",\"\",\"Unødvendig\")))","v":"Unødvendig"}]
[{"$f":"Sjekklista!A48","v":43},{"$f":"IF(Sjekklista!E48=\"Velg svar\",\"Spørsmålet kommer ikke fram før svaralternativ er valgt i sjekklista.\",Sjekklista!D48)","v":"Er planforslaget i konflikt med kommunale planer for vann, avløp og renovasjon?"},{"$f":"IF(Sjekklista!F48=\"JA\",\"JA\",IF(Sjekklista!F48=\"?\",\"?\",IF(Sjekklista!F48=\"\",\"\",\"Unødvendig\")))","v":"Unødvendig"}]
[{"$f":"Sjekklista!A49","v":44},{"$f":"IF(Sjekklista!E49=\"Velg svar\",\"Spørsmålet kommer ikke fram før svaralternativ er valgt i sjekklista.\",Sjekklista!D49)","v":"Er det fare for kjemikalieutslipp eller andre forurensninger i området?"},{"$f":"IF(Sjekklista!F49=\"JA\",\"JA\",IF(Sjekklista!F49=\"?\",\"?\",IF(Sjekklista!F49=\"\",\"\",\"Unødvendig\")))","v":"JA"},null,"Se ROS-analyse"]
[{"$f":"Sjekklista!A50","v":45},{"$f":"IF(Sjekklista!E50=\"Velg svar\",\"Spørsmålet kommer ikke fram før svaralternativ er valgt i sjekklista.\",Sjekklista!D50)","v":"Er det foretatt en vurdering/dokumentasjon av helse- og miljømessige konsekvenser med hensyn til bunn i sjø og vassdrag (mudring)?"},{"$f":"IF(Sjekklista!F50=\"JA\",\"JA\",IF(Sjekklista!F50=\"?\",\"?\",IF(Sjekklista!F50=\"\",\"\",\"Unødvendig\")))","v":"Unødvendig"}]
[{"$f":"Sjekklista!A51","v":46},{"$f":"IF(Sjekklista!E51=\"Velg svar\",\"Spørsmålet kommer ikke fram før svaralternativ er valgt i sjekklista.\",Sjekklista!D51)","v":"Er det foretatt en vurdering/dokumentasjon av helse- og sikkerhetsmessige konsekvenser med hensyn til drikkevann?"},{"$f":"IF(Sjekklista!F51=\"JA\",\"JA\",IF(Sjekklista!F51=\"?\",\"?\",IF(Sjekklista!F51=\"\",\"\",\"Unødvendig\")))","v":"Unødvendig"}]
[{"$f":"Sjekklista!A52","v":47},{"$f":"IF(Sjekklista!E52=\"Velg svar\",\"Spørsmålet kommer ikke fram før svaralternativ er valgt i sjekklista.\",Sjekklista!D52)","v":"Er det forurenset grunn eller sjøsedimenter innenfor eller nær planområdet?"},{"$f":"IF(Sjekklista!F52=\"JA\",\"JA\",IF(Sjekklista!F52=\"?\",\"?\",IF(Sjekklista!F52=\"\",\"\",\"Unødvendig\")))","v":"Unødvendig"}]
[{"$f":"Sjekklista!A53","v":48},{"$f":"IF(Sjekklista!E53=\"Velg svar\",\"Spørsmålet kommer ikke fram før svaralternativ er valgt i sjekklista.\",Sjekklista!D53)","v":"Vil planforslaget kunne få helse- og sikkerhetsmessige konsekvenser med hensyn til forurensa grunn fra eksisterende eller planlagte tiltak?"},{"$f":"IF(Sjekklista!F53=\"JA\",\"JA\",IF(Sjekklista!F53=\"?\",\"?\",IF(Sjekklista!F53=\"\",\"\",\"Unødvendig\")))","v":"Unødvendig"}]
[{"$f":"Sjekklista!A54","v":49},{"$f":"IF(Sjekklista!E54=\"Velg svar\",\"Spørsmålet kommer ikke fram før svaralternativ er valgt i sjekklista.\",Sjekklista!D54)","v":"Vil planforslaget kunne få helse- og sikkerhetsmessige konsekvenser med hensyn til luftforurensning eller støy fra eksisterende eller planlagte kilder/tiltak?"},{"$f":"IF(Sjekklista!F54=\"JA\",\"JA\",IF(Sjekklista!F54=\"?\",\"?\",IF(Sjekklista!F54=\"\",\"\",\"Unødvendig\")))","v":"Unødvendig"}]
[{"$f":"Sjekklista!A55","v":50},{"$f":"IF(Sjekklista!E55=\"Velg svar\",\"Spørsmålet kommer ikke fram før svaralternativ er valgt i sjekklista.\",Sjekklista!D55)","v":"Er krav om energifleksible varmesystemer vurdert eller integrert?"},{"$f":"IF(Sjekklista!F55=\"JA\",\"JA\",IF(Sjekklista!F55=\"?\",\"?\",IF(Sjekklista!F55=\"\",\"\",\"Unødvendig\")))","v":"Unødvendig"}]
[{"$f":"Sjekklista!A56","v":51},{"$f":"IF(Sjekklista!E56=\"Velg svar\",\"Spørsmålet kommer ikke fram før svaralternativ er valgt i sjekklista.\",Sjekklista!D56)","v":"Ligger planområdet innenfor konsesjonsområde for fjernvarme?"},{"$f":"IF(Sjekklista!F56=\"JA\",\"JA\",IF(Sjekklista!F56=\"?\",\"?\",IF(Sjekklista!F56=\"\",\"\",\"Unødvendig\")))","v":"Unødvendig"}]
[{"$f":"Sjekklista!A57","v":52},{"$f":"IF(Sjekklista!E57=\"Velg svar\",\"Spørsmålet kommer ikke fram før svaralternativ er valgt i sjekklista.\",Sjekklista!D57)","v":"Fører planforslaget til at vannforekomster forringes?"},{"$f":"IF(Sjekklista!F57=\"JA\",\"JA\",IF(Sjekklista!F57=\"?\",\"?\",IF(Sjekklista!F57=\"\",\"\",\"Unødvendig\")))","v":"Unødvendig"}]
[{"$f":"Sjekklista!A58","v":53},{"$f":"IF(Sjekklista!E58=\"Velg svar\",\"Spørsmålet kommer ikke fram før svaralternativ er valgt i sjekklista.\",Sjekklista!D58)","v":"Berører planforslaget freda kulturlandskap eller kulturminner/ kulturmiljø som er verna/freda, midlertidig verna/freda eller foreslått verna eller freda?"},{"$f":"IF(Sjekklista!F58=\"JA\",\"JA\",IF(Sjekklista!F58=\"?\",\"?\",IF(Sjekklista!F58=\"\",\"\",\"Unødvendig\")))","v":"Unødvendig"}]
[{"$f":"Sjekklista!A59","v":54},{"$f":"IF(Sjekklista!E59=\"Velg svar\",\"Spørsmålet kommer ikke fram før svaralternativ er valgt i sjekklista.\",Sjekklista!D59)","v":"Er det sikret en tilstrekkelig avstand/buffer mellom utbyggingsområde og landbruksområde?"},{"$f":"IF(Sjekklista!F59=\"JA\",\"JA\",IF(Sjekklista!F59=\"?\",\"?\",IF(Sjekklista!F59=\"\",\"\",\"Unødvendig\")))","v":"Unødvendig"}]
[{"$f":"Sjekklista!A60","v":55},{"$f":"IF(Sjekklista!E60=\"Velg svar\",\"Spørsmålet kommer ikke fram før svaralternativ er valgt i sjekklista.\",Sjekklista!D60)","v":"Berører planforslaget helhetlig kulturlandskap?"},{"$f":"IF(Sjekklista!F60=\"JA\",\"JA\",IF(Sjekklista!F60=\"?\",\"?\",IF(Sjekklista!F60=\"\",\"\",\"Unødvendig\")))","v":"Unødvendig"}]
[{"$f":"Sjekklista!A61","v":56},{"$f":"IF(Sjekklista!E61=\"Velg svar\",\"Spørsmålet kommer ikke fram før svaralternativ er valgt i sjekklista.\",Sjekklista!D61)","v":"Berører planforslaget kulturmiljø som bør tas spesielt hensyn til, f.eks. kystkulturmiljø, bymiljø, industrimiljø?"},{"$f":"IF(Sjekklista!F61=\"JA\",\"JA\",IF(Sjekklista!F61=\"?\",\"?\",IF(Sjekklista!F61=\"\",\"\",\"Unødvendig\")))","v":"Unødvendig"}]
[{"$f":"Sjekklista!A62","v":57},{"$f":"IF(Sjekklista!E62=\"Velg svar\",\"Spørsmålet kommer ikke fram før svaralternativ er valgt i sjekklista.\",Sjekklista!D62)","v":"Er planområdet utsatt for fare med hensyn til flom eller andre værfenomen?"},{"$f":"IF(Sjekklista!F62=\"JA\",\"JA\",IF(Sjekklista!F62=\"?\",\"?\",IF(Sjekklista!F62=\"\",\"\",\"Unødvendig\")))","v":"Unødvendig"}]
[{"$f":"Sjekklista!A63","v":58},{"$f":"IF(Sjekklista!E63=\"Velg svar\",\"Spørsmålet kommer ikke fram før svaralternativ er valgt i sjekklista.\",Sjekklista!D63)","v":"Vil overvannet håndteres lokalt?"},{"$f":"IF(Sjekklista!F63=\"JA\",\"JA\",IF(Sjekklista!F63=\"?\",\"?\",IF(Sjekklista!F63=\"\",\"\",\"Unødvendig\")))","v":"JA"}]
[{"$f":"Sjekklista!A64","v":59},{"$f":"IF(Sjekklista!E64=\"Velg svar\",\"Spørsmålet kommer ikke fram før svaralternativ er valgt i sjekklista.\",Sjekklista!D64)","v":"Er planområdet utsatt for fare med hensyn til snøskred, steinskred, jordskred eller kvikkleire?"},{"$f":"IF(Sjekklista!F64=\"JA\",\"JA\",IF(Sjekklista!F64=\"?\",\"?\",IF(Sjekklista!F64=\"\",\"\",\"Unødvendig\")))","v":"Unødvendig"}]
[{"$f":"Sjekklista!A65","v":60},{"$f":"IF(Sjekklista!E65=\"Velg svar\",\"Spørsmålet kommer ikke fram før svaralternativ er valgt i sjekklista.\",Sjekklista!D65)","v":"Er det i planområdet fare med hensyn til skog- og grassbranner?"},{"$f":"IF(Sjekklista!F65=\"JA\",\"JA\",IF(Sjekklista!F65=\"?\",\"?\",IF(Sjekklista!F65=\"\",\"\",\"Unødvendig\")))","v":"Unødvendig"}]
[{"$f":"Sjekklista!A66","v":61},{"$f":"IF(Sjekklista!E66=\"Velg svar\",\"Spørsmålet kommer ikke fram før svaralternativ er valgt i sjekklista.\",Sjekklista!D66)","v":"Er planområdet utsatt for fare med hensyn til radon eller annen bakgrunnsstråling?"},{"$f":"IF(Sjekklista!F66=\"JA\",\"JA\",IF(Sjekklista!F66=\"?\",\"?\",IF(Sjekklista!F66=\"\",\"\",\"Unødvendig\")))","v":"Unødvendig"}]
[{"$f":"Sjekklista!A67","v":62},{"$f":"IF(Sjekklista!E67=\"Velg svar\",\"Spørsmålet kommer ikke fram før svaralternativ er valgt i sjekklista.\",Sjekklista!D67)","v":"Vil planforslaget komme i berøring med fremmede, skadelige arter?"},{"$f":"IF(Sjekklista!F67=\"JA\",\"JA\",IF(Sjekklista!F67=\"?\",\"?\",IF(Sjekklista!F67=\"\",\"\",\"Unødvendig\")))","v":"Unødvendig"}]
[{"$f":"Sjekklista!A68","v":63},{"$f":"IF(Sjekklista!E68=\"Velg svar\",\"Spørsmålet kommer ikke fram før svaralternativ er valgt i sjekklista.\",Sjekklista!D68)","v":"Er det i planområdet fare med hensyn til industri - brann/eksplosjon?"},{"$f":"IF(Sjekklista!F68=\"JA\",\"JA\",IF(Sjekklista!F68=\"?\",\"?\",IF(Sjekklista!F68=\"\",\"\",\"Unødvendig\")))","v":"JA"},null,"Se ROS-analyse"]
[{"$f":"Sjekklista!A69","v":64},{"$f":"IF(Sjekklista!E69=\"Velg svar\",\"Spørsmålet kommer ikke fram før svaralternativ er valgt i sjekklista.\",Sjekklista!D69)","v":"Er det i planområdet fare med hensyn til stråling fra kraftledninger?"},{"$f":"IF(Sjekklista!F69=\"JA\",\"JA\",IF(Sjekklista!F69=\"?\",\"?\",IF(Sjekklista!F69=\"\",\"\",\"Unødvendig\")))","v":"Unødvendig"}]
[{"$f":"Sjekklista!A70","v":65},{"$f":"IF(Sjekklista!E70=\"Velg svar\",\"Spørsmålet kommer ikke fram før svaralternativ er valgt i sjekklista.\",Sjekklista!D70)","v":"Er det i nærheten av planområdet fare med hensyn til transport eller ulykker med transportmidler (skip, farled, fartøy til kai, jernbane, fly)?"},{"$f":"IF(Sjekklista!F70=\"JA\",\"JA\",IF(Sjekklista!F70=\"?\",\"?\",IF(Sjekklista!F70=\"\",\"\",\"Unødvendig\")))","v":"Unødvendig"}]
[{"$f":"Sjekklista!A71","v":66},{"$f":"IF(Sjekklista!E71=\"Velg svar\",\"Spørsmålet kommer ikke fram før svaralternativ er valgt i sjekklista.\",Sjekklista!D71)","v":"Er det i planområdet infrastruktur man må ta spesielt hensyn til (f.eks. ledninger på land eller i sjø)?"},{"$f":"IF(Sjekklista!F71=\"JA\",\"JA\",IF(Sjekklista!F71=\"?\",\"?\",IF(Sjekklista!F71=\"\",\"\",\"Unødvendig\")))","v":"Unødvendig"}]
[{"$f":"Sjekklista!A72","v":67},{"$f":"IF(Sjekklista!E72=\"Velg svar\",\"Spørsmålet kommer ikke fram før svaralternativ er valgt i sjekklista.\",Sjekklista!D72)","v":"Er planområdet vurdert med hensyn til løsninger som gir tilgjengelighet for alle (universell utforming)?"},{"$f":"IF(Sjekklista!F72=\"JA\",\"JA\",IF(Sjekklista!F72=\"?\",\"?\",IF(Sjekklista!F72=\"\",\"\",\"Unødvendig\")))","v":"JA"}]
[{"$f":"Sjekklista!A73","v":68},{"$f":"IF(Sjekklista!E73=\"Velg svar\",\"Spørsmålet kommer ikke fram før svaralternativ er valgt i sjekklista.\",Sjekklista!D73)","v":"Er arealenes egnethet for lek og møteplass/oppholdsareal vurdert med hensyn til helse- og sikkerhetsmessige forhold?"},{"$f":"IF(Sjekklista!F73=\"JA\",\"JA\",IF(Sjekklista!F73=\"?\",\"?\",IF(Sjekklista!F73=\"\",\"\",\"Unødvendig\")))","v":"JA"}]
[{"$f":"Sjekklista!A74","v":69},{"$f":"IF(Sjekklista!E74=\"Velg svar\",\"Spørsmålet kommer ikke fram før svaralternativ er valgt i sjekklista.\",Sjekklista!D74)","v":"Er arealenes egnethet for lek og møteplass vurdert med hensyn til lokalisering (solfylt, vindskjermet, god vegetasjon, trafikksikkerhet, avstander til nye og eksisterende boliger)?"},{"$f":"IF(Sjekklista!F74=\"JA\",\"JA\",IF(Sjekklista!F74=\"?\",\"?\",IF(Sjekklista!F74=\"\",\"\",\"Unødvendig\")))","v":"JA"}]
[{"$f":"Sjekklista!A75","v":70},{"$f":"IF(Sjekklista!E75=\"Velg svar\",\"Spørsmålet kommer ikke fram før svaralternativ er valgt i sjekklista.\",Sjekklista!D75)","v":"Er arealenes egnethet for lek og møteplass vurdert med hensyn til størrelse, utforming og kvalitet, at de skal kunne fungere til ulike årstider og er tilpasset ulike brukergruppers behov?"},{"$f":"IF(Sjekklista!F75=\"JA\",\"JA\",IF(Sjekklista!F75=\"?\",\"?\",IF(Sjekklista!F75=\"\",\"\",\"Unødvendig\")))","v":"JA"}]
[{"$f":"Sjekklista!A76","v":71},{"$f":"IF(Sjekklista!E76=\"Velg svar\",\"Spørsmålet kommer ikke fram før svaralternativ er valgt i sjekklista.\",Sjekklista!D76)","v":"Er det vurdert behovet for ulike typer lekeplasser og møteplasser med hensyn til planområdets tilgrensende boligområder?"},{"$f":"IF(Sjekklista!F76=\"JA\",\"JA\",IF(Sjekklista!F76=\"?\",\"?\",IF(Sjekklista!F76=\"\",\"\",\"Unødvendig\")))","v":"Unødvendig"}]
[{"$f":"Sjekklista!A77","v":72},{"$f":"IF(Sjekklista!E77=\"Velg svar\",\"Spørsmålet kommer ikke fram før svaralternativ er valgt i sjekklista.\",Sjekklista!D77)","v":"Fører planforslaget til et tap av eksisterende eller egnede lekeareal eller møteplasser for beboerne eller barnehager/skoler i området som utløser krav om erstatningsareal?"},{"$f":"IF(Sjekklista!F77=\"JA\",\"JA\",IF(Sjekklista!F77=\"?\",\"?\",IF(Sjekklista!F77=\"\",\"\",\"Unødvendig\")))","v":"Unødvendig"}]
[{"$f":"Sjekklista!A78","v":73},{"$f":"IF(Sjekklista!E78=\"Velg svar\",\"Spørsmålet kommer ikke fram før svaralternativ er valgt i sjekklista.\",Sjekklista!D78)","v":"Er det utarbeidet en landskapsplan som viser eksisterende vegetasjon, nyplanting, veier, parkering, gangvei, stigningsforhold og leke- og oppholdsareal?"},{"$f":"IF(Sjekklista!F78=\"JA\",\"JA\",IF(Sjekklista!F78=\"?\",\"?\",IF(Sjekklista!F78=\"\",\"\",\"Unødvendig\")))","v":"Unødvendig"}]
[{"$f":"Sjekklista!A79","v":74},{"$f":"IF(Sjekklista!E79=\"Velg svar\",\"Spørsmålet kommer ikke fram før svaralternativ er valgt i sjekklista.\",Sjekklista!D79)","v":"Er det kartlagt og vurdert trafikkforhold (adkomst, trafikkmengde/ÅDT, trafikkavvikling for ulike trafikantgrupper)?"},{"$f":"IF(Sjekklista!F79=\"JA\",\"JA\",IF(Sjekklista!F79=\"?\",\"?\",IF(Sjekklista!F79=\"\",\"\",\"Unødvendig\")))","v":"JA"},null,"Ja, se trafikkanalyse"]
[{"$f":"Sjekklista!A80","v":75},{"$f":"IF(Sjekklista!E80=\"Velg svar\",\"Spørsmålet kommer ikke fram før svaralternativ er valgt i sjekklista.\",Sjekklista!D80)","v":"Er parkeringen for sykkel og bil løst i henhold til gjeldende krav?"},{"$f":"IF(Sjekklista!F80=\"JA\",\"JA\",IF(Sjekklista!F80=\"?\",\"?\",IF(Sjekklista!F80=\"\",\"\",\"Unødvendig\")))","v":"Unødvendig"}]
[{"$f":"Sjekklista!A81","v":76},{"$f":"IF(Sjekklista!E81=\"Velg svar\",\"Spørsmålet kommer ikke fram før svaralternativ er valgt i sjekklista.\",Sjekklista!D81)","v":"Fører planforslaget til økt trafikk?"},{"$f":"IF(Sjekklista!F81=\"JA\",\"JA\",IF(Sjekklista!F81=\"?\",\"?\",IF(Sjekklista!F81=\"\",\"\",\"Unødvendig\")))","v":"JA"},null,"Ja, se trafikkanalyse"]
[{"$f":"Sjekklista!A82","v":77},{"$f":"IF(Sjekklista!E82=\"Velg svar\",\"Spørsmålet kommer ikke fram før svaralternativ er valgt i sjekklista.\",Sjekklista!D82)","v":"Tilfredsstiller planforslaget veglov / vegnormal, evt. standard for kommunale veger,?"},{"$f":"IF(Sjekklista!F82=\"JA\",\"JA\",IF(Sjekklista!F82=\"?\",\"?\",IF(Sjekklista!F82=\"\",\"\",\"Unødvendig\")))","v":"Unødvendig"}]
[{"$f":"Sjekklista!A83","v":78},{"$f":"IF(Sjekklista!E83=\"Velg svar\",\"Spørsmålet kommer ikke fram før svaralternativ er valgt i sjekklista.\",Sjekklista!D83)","v":"Er det sikret god tilknytning til kollektivknutepunkt/holdeplass? (buss, bane, ferge o.l.)?"},{"$f":"IF(Sjekklista!F83=\"JA\",\"JA\",IF(Sjekklista!F83=\"?\",\"?\",IF(Sjekklista!F83=\"\",\"\",\"Unødvendig\")))","v":"JA"},null,"Trafikkanalyse"]
[{"$f":"Sjekklista!A84","v":79},{"$f":"IF(Sjekklista!E84=\"Velg svar\",\"Spørsmålet kommer ikke fram før svaralternativ er valgt i sjekklista.\",Sjekklista!D84)","v":"Er det vurdert behov for kollektivfelt, busslommer, bussrepos, leskur, drosjeholdeplass?"},{"$f":"IF(Sjekklista!F84=\"JA\",\"JA\",IF(Sjekklista!F84=\"?\",\"?\",IF(Sjekklista!F84=\"\",\"\",\"Unødvendig\")))","v":"Unødvendig"}]
[{"$f":"Sjekklista!A85","v":80},{"$f":"IF(Sjekklista!E85=\"Velg svar\",\"Spørsmålet kommer ikke fram før svaralternativ er valgt i sjekklista.\",Sjekklista!D85)","v":"Er samtidighet vurdert med hensyn til trafikksikkerhet og tilgjengelighet til bussholdeplasser/kollektivtilbud?"},{"$f":"IF(Sjekklista!F85=\"JA\",\"JA\",IF(Sjekklista!F85=\"?\",\"?\",IF(Sjekklista!F85=\"\",\"\",\"Unødvendig\")))","v":"JA"},null,"Trafikkanalyse"]
[{"$f":"Sjekklista!A86","v":81},{"$f":"IF(Sjekklista!E86=\"Velg svar\",\"Spørsmålet kommer ikke fram før svaralternativ er valgt i sjekklista.\",Sjekklista!D86)","v":"Er samtidighet vurdert med hensyn til trafikksikkerhet og tilgjengelighet til nærbutikk, boligområder, forbindelseslinjer og kryssing for myke traffikanter?"},{"$f":"IF(Sjekklista!F86=\"JA\",\"JA\",IF(Sjekklista!F86=\"?\",\"?\",IF(Sjekklista!F86=\"\",\"\",\"Unødvendig\")))","v":"JA"}]
[{"$f":"Sjekklista!A87","v":82},{"$f":"IF(Sjekklista!E87=\"Velg svar\",\"Spørsmålet kommer ikke fram før svaralternativ er valgt i sjekklista.\",Sjekklista!D87)","v":"Knytter planforslaget seg til et sammenhengende gang- og sykkelvegnett?"},{"$f":"IF(Sjekklista!F87=\"JA\",\"JA\",IF(Sjekklista!F87=\"?\",\"?\",IF(Sjekklista!F87=\"\",\"\",\"Unødvendig\")))","v":"JA"},null,"Trafikkanalyse"]
[{"$f":"Sjekklista!A88","v":83},{"$f":"IF(Sjekklista!E88=\"Velg svar\",\"Spørsmålet kommer ikke fram før svaralternativ er valgt i sjekklista.\",Sjekklista!D88)","v":"Er samtidighet vurdert med hensyn til trafikksikkerhet og tilgjengelighet til skole /barnehage, skoleveg/barnetråkk, lekeareal/oppholdsareal, fri- og friluftsområder?"},{"$f":"IF(Sjekklista!F88=\"JA\",\"JA\",IF(Sjekklista!F88=\"?\",\"?\",IF(Sjekklista!F88=\"\",\"\",\"Unødvendig\")))","v":"JA"}]
[{"$f":"Sjekklista!A89","v":84},{"$f":"IF(Sjekklista!E89=\"Velg svar\",\"Spørsmålet kommer ikke fram før svaralternativ er valgt i sjekklista.\",Sjekklista!D89)","v":0},{"$f":"IF(Sjekklista!F89=\"JA\",\"JA\",IF(Sjekklista!F89=\"?\",\"?\",IF(Sjekklista!F89=\"\",\"\",\"Unødvendig\")))","v":""}]
[{"$f":"Sjekklista!A90","v":85},{"$f":"IF(Sjekklista!E90=\"Velg svar\",\"Spørsmålet kommer ikke fram før svaralternativ er valgt i sjekklista.\",Sjekklista!D90)","v":0},{"$f":"IF(Sjekklista!F90=\"JA\",\"JA\",IF(Sjekklista!F90=\"?\",\"?\",IF(Sjekklista!F90=\"\",\"\",\"Unødvendig\")))","v":""}]
[{"$f":"Sjekklista!A91","v":86},{"$f":"IF(Sjekklista!E91=\"Velg svar\",\"Spørsmålet kommer ikke fram før svaralternativ er valgt i sjekklista.\",Sjekklista!D91)","v":0},{"$f":"IF(Sjekklista!F91=\"JA\",\"JA\",IF(Sjekklista!F91=\"?\",\"?\",IF(Sjekklista!F91=\"\",\"\",\"Unødvendig\")))","v":""}]
[{"$f":"Sjekklista!A92","v":87},{"$f":"IF(Sjekklista!E92=\"Velg svar\",\"Spørsmålet kommer ikke fram før svaralternativ er valgt i sjekklista.\",Sjekklista!D92)","v":0},{"$f":"IF(Sjekklista!F92=\"JA\",\"JA\",IF(Sjekklista!F92=\"?\",\"?\",IF(Sjekklista!F92=\"\",\"\",\"Unødvendig\")))","v":""}]
[{"$f":"Sjekklista!A93","v":88},{"$f":"IF(Sjekklista!E93=\"Velg svar\",\"Spørsmålet kommer ikke fram før svaralternativ er valgt i sjekklista.\",Sjekklista!D93)","v":0},{"$f":"IF(Sjekklista!F93=\"JA\",\"JA\",IF(Sjekklista!F93=\"?\",\"?\",IF(Sjekklista!F93=\"\",\"\",\"Unødvendig\")))","v":""}]
[{"$f":"Sjekklista!A94","v":89},{"$f":"IF(Sjekklista!E94=\"Velg svar\",\"Spørsmålet kommer ikke fram før svaralternativ er valgt i sjekklista.\",Sjekklista!D94)","v":0},{"$f":"IF(Sjekklista!F94=\"JA\",\"JA\",IF(Sjekklista!F94=\"?\",\"?\",IF(Sjekklista!F94=\"\",\"\",\"Unødvendig\")))","v":""}]
[null,{"$f":"IF(Sjekklista!F103=\"Ja\",Sjekklista!D103,\"\")","v":""}]

{"sheet":"Nyttige lenker","index":2,"n_rows":13,"n_cols":3,"rows_kept":13,"cut":false,"hidden":false,"merged":[]}
["Nyttige nettsteder for planleggere"]
[]
[]
["Nettsted","Tema","Nettadresse"]
["Barne- ungdoms- og familiedirektoratet","Universell utforming og tilgjengelighet","https://www.bufdir.no/uu/ "]
["Kompetanseprogrammet","Reguleringsplan","http://uukurs.dibk.no/modul-3/kommunal-planlegging/reguleringsplan/ "]
["Direktoratet for byggkvalitet","Verktøy for byggeskikk og godt bomiljø","https://dibk.no/saksbehandling/byggeskikk/ "]
["Regjeringen.no","T-1267 Fortetting med kvalitet","https://www.regjeringen.no/no/dokumenter/t-1267-fortetting-med-kvalitet/id87454/ "]
["Regjeringen.no","Byrom - en idéhåndbok","https://www.regjeringen.no/no/dokumenter/byrom---en-idehandbok/id2524971/ "]
["Regjeringen.no","Veileder for fortettingsanalyser i knutepunktsområder","https://www.regjeringen.no/no/dokumenter/veileder-for-fortettingsanalyser-i-knutepunktsomrader/id2400713/?q=fortetting "]
["Regjeringen.no","Fortetting","https://www.regjeringen.no/no/sub/stedsutvikling/ny-emner-og-eksempler/fortetting-ny/id2363894/ "]
["Husbanken.no","Bygg tett med kvalitet","https://husbanken.no/byggeskikk/vertoy/den-gode-bebyggelsesplanen/ "]
["Dsb.no","Metode for risiko- og sårbarhetsanalyse i planleggingen","https://www.dsb.no/veiledere-handboker-og-informasjonsmateriell/samfunnssikkerhet-i-kommunenes-arealplanlegging/"]

{"sheet":"Datavalidering","index":3,"n_rows":5,"n_cols":3,"rows_kept":5,"cut":false,"hidden":true,"merged":[]}
["Svaralternativ 1","Svaralternativ 2","Svaralternativ 3"]
["Velg svar","Velg svar","Velg svar"]
["JA","JA","JA"]
["NEI","UAKTUELT","NEI"]
[null,null,"UAKTUELT"]

{"sheet":"Ark2","index":4,"n_rows":0,"n_cols":0,"rows_kept":0,"cut":false,"hidden":false,"merged":[]}

{"sheet":"Ark1","index":5,"n_rows":0,"n_cols":0,"rows_kept":0,"cut":false,"hidden":false,"merged":[]}

{"sheet":"Ark3","index":6,"n_rows":0,"n_cols":0,"rows_kept":0,"cut":false,"hidden":false,"merged":[]}